bitfinex/quotes_ETHUSD_20251128
["timestamp","ask_amount","ask_price","bid_price","bid_amount"]
[1764348482313,0.002,3037.8,3037.4,0.72647957]
[1764348482314,0.30411834,3037.8,3037.4,4.01868351]
[1764348482615,0.002,3037.8,3037.7,0.9347]
[1764348482818,0.30402169,3037.8,3037.7,0.4637]
[1764348483231,0.30403055,3037.8,3037.7,0.9347]
[1764348483384,0.002,3037.8,3037.7,0.9347]
[1764348483580,0.002,3037.8,3037.7,1.12162941]
[1764348484231,0.002,3037.8,3037.7,5.13918783]
[1764348485187,0.1016,3037.8,3037.7,1.84722352]
[1764348485398,0.1016,3037.8,3037.7,1.86352352]
[1764348485597,0.4038731,3037.8,3037.7,5.15548783]
[1764348488633,0.3042731,3037.8,3037.7,5.15548783]
[1764348491342,0.0002,3037.8,3037.7,9.01548783]
[1764348491550,0.002,3038.2,3037.8,1.89634983]
[1764348491841,0.002,3038.2,3038.1,1.40499411]
[1764348492032,0.002,3038.2,3038.1,1.89229411]
[1764348492245,0.002,3038.2,3038.1,2.79246509]
[1764348493410,0.002,3038.2,3038.1,6.08399598]
[1764348493835,0.002,3038.5,3038.1,6.08399598]
[1764348493836,0.002,3038.5,3038.2,1.214204]
[1764348494058,0.002,3039.0,3038.7,0.405504]
[1764348494247,0.002,3039.0,3038.9,8.10870983]
[1764348494555,0.002,3039.0,3038.9,9.46833121]
[1764348494749,0.002,3039.0,3038.9,9.81187582]
[1764348495548,0.002,3039.0,3038.9,13.1025402]
[1764348496142,0.002,3039.0,3038.9,13.5080442]
[1764348496614,0.002,3039.0,3038.9,13.49049959]
[1764348497227,0.30077445,3040.6,3039.6,0.72559411]
[1764348497429,0.0998,3040.5,3039.7,0.97160098]
[1764348497630,0.0998,3040.7,3039.9,0.72559411]
[1764348497831,0.0998,3040.7,3039.8,9.86907033]
[1764348497832,0.1879,3041.6,3040.6,0.4827]
[1764348498052,0.30051448,3041.6,3040.9,0.4827]
[1764348498252,0.30051448,3041.9,3041.5,0.4827]
[1764348498453,0.40031448,3042.1,3041.5,1.179]
[1764348498624,0.04109138,3042.0,3041.5,1.179]
[1764348498825,0.04109138,3042.0,3041.0,0.209]
[1764348498826,0.83017965,3041.6,3041.0,0.209]
[1764348499024,0.0998,3041.2,3041.0,0.209]
[1764348499327,0.0998,3041.2,3039.8,13.15876044]
[1764348499328,0.80637965,3041.7,3041.1,0.209]
[1764348499530,0.0998,3041.3,3041.1,0.209]
[1764348499732,0.4755,3041.7,3041.1,0.209]
[1764348499733,0.0998,3041.4,3041.1,0.209]
[1764348499954,0.0998,3041.3,3041.1,0.209]
[1764348500450,3.28755415,3041.8,3041.1,3.497269]
[1764348500652,0.0998,3041.6,3041.1,3.497269]
[1764348500853,0.0998,3041.6,3041.1,0.209]
[1764348501057,0.0998,3041.6,3041.1,3.49727505]
[1764348501265,0.0998,3041.8,3041.1,3.96527505]
[1764348501426,0.5956,3041.8,3041.1,3.96527505]
[1764348501626,0.0998,3041.6,3041.1,7.25355889]
[1764348501827,3.57511974,3041.9,3041.2,0.72559411]
[1764348502028,0.0998,3041.6,3041.2,0.72559411]
[1764348502430,0.1018,3042.1,3041.5,0.4622]
[1764348502664,0.1018,3042.1,3041.6,0.209]
[1764348503264,0.1018,3042.1,3041.6,0.677]
[1764348503431,0.002,3042.1,3041.6,0.677]
[1764348503626,0.1018,3042.1,3041.6,0.677]
[1764348503830,0.1018,3042.1,3041.7,3.2876352]
[1764348504026,0.1018,3042.1,3042.0,0.4622]
[1764348504027,0.002,3042.1,3042.0,0.4622]
[1764348504252,0.002,3042.1,3042.0,0.6712]
[1764348505454,0.002,3042.1,3042.0,1.1392]
[1764348505764,0.002,3042.1,3042.0,4.42651097]
[1764348506065,0.002,3042.1,3041.9,0.209]
[1764348506264,0.002,3042.1,3042.0,0.9302]
[1764348507352,0.002,3042.1,3042.0,0.4622]
[1764348507550,0.2712,3042.1,3041.3,0.468]
[1764348507749,0.0998,3041.9,3041.6,0.72559411]
[1764348508142,0.0998,3041.9,3041.6,1.19359411]
[1764348508339,0.002,3042.1,3041.6,1.76896728]
[1764348508340,0.1018,3042.1,3041.6,1.76896728]
[1764348508536,0.1018,3042.1,3041.4,7.51050882]
[1764348508537,0.5976,3042.1,3041.4,7.51050882]
[1764348508732,0.1018,3042.1,3041.5,0.468]
[1764348509144,0.1018,3042.1,3041.4,7.51050882]
[1764348509961,0.0998,3041.8,3041.4,0.93459411]
[1764348510164,0.1018,3042.1,3041.4,4.22248969]
[1764348510664,0.0998,3041.8,3041.4,0.93459411]
[1764348510878,0.5673,3041.5,3041.2,0.209]
[1764348511246,1.0621,3041.5,3041.2,0.209]
[1764348511883,0.0049,3041.3,3041.2,0.209]
[1764348512035,0.1047,3041.3,3041.2,0.209]
[1764348512240,0.6005,3041.3,3041.2,0.209]
[1764348512952,0.6005,3041.3,3040.4,0.6647]
[1764348513156,0.2656,3041.0,3040.5,6.78680317]
[1764348513401,0.2656,3041.0,3040.6,0.72559411]
[1764348514171,3.5540172,3041.0,3040.5,0.95415032]
[1764348514342,0.2933,3040.9,3040.5,0.209]
[1764348514544,0.7861,3040.9,3040.5,0.209]
[1764348515066,0.7861,3040.9,3040.6,0.72559411]
[1764348515233,0.7861,3040.9,3040.5,0.209]
[1764348515432,0.7861,3040.9,3040.2,3.48724211]
[1764348515433,0.2679,3040.6,3040.2,3.28924333]
[1764348515653,0.2679,3040.6,3040.3,0.93459411]
[1764348515654,0.0998,3040.6,3040.3,0.93459411]
[1764348515869,0.0998,3040.6,3040.3,0.209]
[1764348516070,0.0998,3040.6,3040.3,0.93459411]
[1764348516274,0.0998,3040.6,3040.3,4.22365202]
[1764348516941,0.3054,3040.4,3040.3,0.209]
[1764348517179,0.5532,3040.7,3040.3,0.209]
[1764348517489,0.5532,3040.7,3040.4,0.72559411]
[1764348517986,0.0998,3040.7,3040.4,0.72559411]
[1764348518192,0.0998,3040.7,3040.3,3.49813983]
[1764348518193,0.3054,3040.5,3040.3,0.209]
[1764348518423,0.49301544,3040.9,3040.3,0.209]
[1764348518424,0.1043,3040.4,3040.3,0.209]
[1764348518555,0.1043,3040.4,3039.4,3.29004686]
[1764348518556,0.0998,3040.1,3039.3,0.1992]
[1764348518760,0.0998,3039.8,3039.1,3.2904142]
[1764348518956,0.0998,3039.8,3039.2,0.209]
[1764348519192,0.0998,3039.8,3039.2,1.60829411]
[1764348519498,0.30031436,3039.7,3039.3,0.81891561]
[1764348519661,0.0998,3039.8,3039.3,0.81891561]
[1764348519995,0.30031419,3039.7,3039.4,0.4745]
[1764348520200,0.0998,3039.8,3039.4,0.4745]
[1764348520358,0.30024687,3039.7,3039.4,0.4745]
[1764348520558,0.30024687,3039.6,3039.5,0.4583561]
[1764348520981,0.30024687,3039.6,3039.5,0.9304561]
[1764348521667,0.59404687,3039.6,3039.4,0.209]
[1764348521973,0.0998,3040.1,3039.5,0.9466]
[1764348522161,0.0998,3039.9,3039.5,0.4721]
[1764348522493,0.0998,3039.9,3039.7,0.72559411]
[1764348522670,0.2946,3039.8,3039.5,0.72559411]
[1764348522868,0.2946,3039.8,3039.5,0.42247881]
[1764348523068,0.3944,3039.8,3039.4,3.49908876]
[1764348523282,0.3944,3039.8,3039.4,0.209]
[1764348523665,0.3944,3039.8,3039.4,3.49909095]
[1764348523863,3.28896254,3040.5,3039.4,3.49909095]
[1764348523864,0.0998,3040.6,3039.7,0.4721]
[1764348524062,0.2003,3042.0,3040.5,0.6713]
[1764348524063,0.0998,3041.3,3040.5,0.6713]
[1764348524380,0.0998,3041.0,3040.6,0.209]
[1764348524581,0.0998,3041.0,3040.6,3.49781981]
[1764348524890,0.0998,3041.0,3040.6,4.17649862]
[1764348525997,0.5547,3041.0,3040.6,4.17646921]
[1764348526297,0.0998,3041.0,3040.6,4.17646921]
[1764348526499,0.04110084,3041.3,3040.6,7.93979378]
[1764348526700,0.04110084,3041.3,3040.7,0.4745]
[1764348526701,0.0998,3041.3,3040.7,0.4745]
[1764348527007,0.1962,3041.9,3040.8,0.79397938]
[1764348527301,0.4549,3041.5,3040.8,0.79397938]
[1764348527503,0.4549,3041.5,3040.9,0.209]
[1764348527504,0.0998,3041.1,3040.9,0.209]
[1764348527680,0.291,3041.0,3040.9,0.209]
[1764348528693,0.291,3041.0,3040.9,3.49750011]
[1764348529096,0.0998,3041.1,3040.9,3.49750011]
[1764348529904,0.0998,3041.1,3040.9,0.209]
[1764348530102,0.0998,3041.1,3040.9,0.63131725]
[1764348530280,0.0998,3041.1,3040.9,3.91980655]
[1764348530708,0.04309679,3041.6,3040.9,3.91980655]
[1764348530709,0.002,3041.6,3041.0,0.9466]
[1764348531005,0.1018,3041.6,3041.0,0.4721]
[1764348531167,0.4549,3041.5,3040.9,3.91980655]
[1764348531369,0.0998,3041.3,3041.0,0.39198066]
[1764348533004,0.0998,3041.3,3041.1,3.28828384]
[1764348533170,0.1018,3041.6,3041.2,0.4721]
[1764348533566,0.30069842,3041.5,3041.2,0.4721]
[1764348533795,0.30069842,3041.4,3041.2,0.88733645]
[1764348534016,0.0998,3041.2,3040.2,0.6737]
[1764348534168,0.0998,3041.0,3040.4,0.72559411]
[1764348534698,0.0998,3041.2,3040.9,0.4721]
[1764348534995,0.0998,3041.2,3040.5,0.4745]
[1764348534996,0.3007381,3041.1,3040.8,0.209]
[1764348535295,0.3007381,3041.0,3040.8,0.209]
[1764348535504,0.0998,3041.2,3040.8,0.209]
[1764348535801,0.30081361,3041.1,3040.8,3.97210355]
[1764348536016,0.30081361,3041.0,3040.9,0.39721036]
[1764348536421,0.30081361,3041.0,3040.9,0.86931036]
[1764348536594,0.0998,3041.4,3040.9,0.86931036]
[1764348536794,0.30091284,3041.3,3040.9,1.59490447]
[1764348536992,0.0998,3041.5,3041.1,3.28828384]
[1764348537194,0.30096083,3041.4,3041.1,3.28828384]
[1764348537397,0.30096083,3041.3,3041.2,0.209]
[1764348537592,0.0998,3041.2,3040.9,0.39721036]
[1764348537797,0.0998,3041.2,3040.1,0.72559411]
[1764348537798,0.0998,3040.8,3040.3,0.209]
[1764348538324,0.0998,3040.8,3040.4,0.4745]
[1764348538827,0.0998,3040.8,3040.3,0.209]
[1764348539005,0.0998,3040.8,3040.3,0.6835]
[1764348539205,0.0998,3040.8,3040.4,6.57808182]
[1764348539523,0.0998,3040.8,3040.5,0.72615818]
[1764348539918,0.5547,3040.8,3040.5,0.72615818]
[1764348540097,0.291,3040.6,3040.3,3.49814554]
[1764348540300,0.0998,3040.8,3040.3,6.78729463]
[1764348540634,0.301398,3040.7,3040.3,3.49814554]
[1764348540800,0.0998,3040.5,3040.3,3.49814554]
[1764348541124,0.1988,3040.9,3040.4,0.34981455]
[1764348541324,0.30121309,3040.8,3040.4,3.63879912]
[1764348541529,0.291,3040.5,3040.3,0.209]
[1764348541701,0.4533,3040.4,3040.3,0.209]
[1764348541909,0.0998,3040.5,3040.3,3.49814909]
[1764348542097,3.94220224,3040.9,3040.3,3.49814909]
[1764348542297,0.75599,3040.8,3040.3,0.209]
[1764348542525,0.291,3040.4,3040.3,0.209]
[1764348542717,0.0998,3040.5,3040.3,0.209]
[1764348543123,0.0998,3040.5,3040.4,0.4721]
[1764348543425,0.40094608,3040.5,3040.3,0.209]
[1764348543647,0.0998,3040.5,3040.3,0.209]
[1764348543845,0.471,3040.4,3040.0,0.93459411]
[1764348544050,0.471,3040.4,3039.2,3.49051246]
[1764348544051,0.291,3040.1,3039.4,3.29004544]
[1764348544219,0.0998,3039.9,3039.5,3.5000096]
[1764348544414,0.0998,3039.9,3039.5,0.56000096]
[1764348544651,0.4549,3039.8,3039.6,0.72559411]
[1764348544851,0.4549,3039.8,3039.5,4.22559076]
[1764348545155,0.2986,3039.9,3039.5,4.22559076]
[1764348545321,0.2986,3039.9,3039.5,7.51560556]
[1764348545521,0.2986,3039.9,3039.5,4.22559076]
[1764348545838,0.2988,3039.9,3039.6,0.75156833]
[1764348547322,0.2988,3039.9,3039.6,4.04137546]
[1764348547723,3.96790233,3040.9,3039.8,0.498]
[1764348547950,0.1,3040.5,3040.0,0.498]
[1764348548957,0.5806,3040.5,3040.0,0.498]
[1764348549718,0.5806,3040.5,3040.1,6.57873096]
[1764348549969,0.0411076,3040.8,3040.1,6.57873096]
[1764348549970,0.1411076,3040.8,3040.2,0.7076731]
[1764348550136,0.40099526,3040.7,3040.2,0.7076731]
[1764348550451,0.3687,3040.3,3039.9,0.209]
[1764348550625,0.1,3040.3,3039.9,6.78810381]
[1764348550829,0.1,3040.3,3039.9,7.25420381]
[1764348551158,0.1,3040.3,3040.0,0.4661]
[1764348551450,0.1,3040.3,3039.9,7.25420381]
[1764348551655,0.1,3040.3,3040.0,0.72542038]
[1764348551952,0.1,3040.3,3039.5,0.001]
[1764348551953,0.4662,3040.0,3039.5,0.001]
[1764348552158,0.1,3039.6,3039.5,3.5000148]
[1764348552452,0.283,3040.2,3039.5,4.4641148]
[1764348552453,0.1,3039.8,3039.5,4.4641148]
[1764348552624,0.1,3039.8,3039.5,7.7541296]
[1764348552951,0.1,3039.8,3039.5,4.77343798]
[1764348553154,0.1,3039.8,3039.5,8.06345278]
[1764348553354,0.1,3039.8,3039.5,4.77343798]
[1764348553561,0.2687,3039.6,3039.5,0.21]
[1764348553780,3.65860656,3039.6,3039.5,0.001]
[1764348553926,4.76901522,3039.6,3039.5,0.001]
[1764348555062,5.17451922,3039.6,3039.5,0.001]
[1764348555259,5.90011333,3039.6,3039.5,0.001]
[1764348555433,6.91910511,3039.6,3039.5,0.001]
[1764348555632,22.77304011,3039.6,3039.5,0.001]
[1764348555860,0.33087965,3039.0,3038.9,0.001]
[1764348556060,1.62631266,3039.0,3038.9,0.001]
[1764348556367,1.13109811,3038.7,3037.6,0.001]
[1764348556666,0.2905,3037.7,3037.6,0.001]
[1764348557039,0.755,3037.7,3037.6,0.001]
[1764348558540,0.1075,3037.7,3037.6,0.001]
[1764348558982,0.1,3037.8,3037.6,0.9446]
[1764348559268,0.1,3037.8,3037.6,0.4711]
[1764348559473,0.1,3037.9,3037.7,0.9436]
[1764348559641,0.183,3038.4,3037.7,0.9436]
[1764348559642,0.1,3038.1,3037.7,0.9436]
[1764348559844,0.1,3038.1,3038.0,0.4701]
[1764348560149,0.1,3038.6,3038.0,1.22280982]
[1764348560468,0.493,3038.1,3038.0,0.75270982]
[1764348560667,0.493,3038.1,3037.6,0.001]
[1764348560668,0.1,3038.0,3037.6,0.21]
[1764348560841,0.1,3038.0,3037.7,0.72559411]
[1764348561040,0.405504,3038.8,3037.9,0.4701]
[1764348561246,7.22886184,3038.9,3037.9,0.4701]
[1764348561247,0.1,3038.3,3037.9,0.4701]
[1764348561446,0.1,3038.3,3037.9,1.11051941]
[1764348561872,0.1,3038.3,3038.2,0.4701]
[1764348563179,0.1,3038.5,3038.2,0.9436]
[1764348563555,0.4645,3038.7,3037.9,4.65772419]
[1764348563770,0.1,3038.2,3037.9,4.65772419]
[1764348564344,0.1,3038.2,3038.1,0.4701]
[1764348564980,0.1,3038.4,3038.1,1.1323]
[1764348565161,0.1,3038.6,3038.1,2.20212718]
[1764348565682,0.1,3038.6,3038.2,0.4735]
[1764348565844,0.1,3038.6,3038.3,3.29131422]
[1764348566250,0.1,3038.7,3038.3,7.05612844]
[1764348566452,0.1,3038.7,3038.3,3.76481422]
[1764348567284,0.1,3038.7,3038.3,4.59628957]
[1764348567673,0.183,3038.9,3038.3,0.83147535]
[1764348567674,3.29070227,3038.9,3038.3,0.83147535]
[1764348567985,0.1,3038.6,3038.1,3.68913056]
[1764348568164,0.3133,3038.4,3038.1,3.50043056]
[1764348568882,0.1,3038.5,3038.1,3.50043056]
[1764348569884,0.0992,3038.5,3038.1,3.50043056]
[1764348570085,0.0992,3038.5,3038.1,4.19632831]
[1764348570294,0.0992,3038.8,3038.2,0.4735]
[1764348570751,0.0992,3038.8,3038.1,7.6765592]
[1764348570752,3.33184232,3038.9,3038.1,7.6765592]
[1764348570951,0.0992,3038.6,3038.1,7.6765592]
[1764348572286,0.0992,3038.6,3038.1,4.38502831]
[1764348572585,0.3133,3038.2,3038.1,0.209]
[1764348572956,0.0992,3038.3,3038.1,3.50053089]
[1764348573256,0.0992,3038.3,3038.1,0.209]
[1764348573920,0.0992,3038.3,3038.1,3.50052153]
[1764348575004,0.4757,3038.2,3038.1,0.209]
[1764348576008,0.0992,3038.3,3038.1,3.50053089]
[1764348576195,0.0992,3038.3,3038.1,3.99683089]
[1764348576918,0.0992,3038.3,3038.1,0.7053]
[1764348577286,0.0992,3038.3,3038.2,0.4963]
[1764348577486,0.0992,3038.3,3038.1,0.209]
[1764348577914,0.3073,3038.2,3038.1,0.209]
[1764348578519,0.0992,3038.3,3038.1,0.7053]
[1764348578813,0.3073,3038.2,3038.1,0.209]
[1764348579314,0.4065,3038.2,3038.1,0.209]
[1764348579914,0.0992,3038.2,3038.1,0.209]
[1764348580115,0.0992,3038.1,3038.0,0.001]
[1764348580324,0.40468279,3038.1,3038.0,0.001]
[1764348580487,0.87538279,3038.1,3038.0,0.001]
[1764348581312,4.49779333,3038.1,3038.0,0.001]
[1764348581502,4.94583587,3038.1,3038.0,0.001]
[1764348583318,0.40468279,3038.1,3038.0,0.001]
[1764348583619,0.30078279,3038.1,3038.0,0.9942]
[1764348584705,0.30078279,3038.1,3038.0,0.001]
[1764348584904,0.87568279,3038.1,3038.0,0.001]
[1764348585304,4.70119333,3038.1,3038.0,0.001]
[1764348585499,5.5996554,3038.1,3038.0,0.001]
[1764348586523,1.97724486,3038.1,3038.0,0.001]
[1764348586826,4.46951368,3038.1,3038.0,0.001]
[1764348587231,0.87568279,3038.1,3038.0,0.001]
[1764348588129,4.16721368,3038.1,3038.0,0.001]
[1764348588434,4.80039333,3038.1,3038.0,0.001]
[1764348589029,1.50886244,3038.1,3038.0,0.001]
[1764348589337,1.17798279,3038.1,3038.0,0.001]
[1764348589530,4.46951368,3038.1,3038.0,0.001]
[1764348590198,5.26650787,3038.1,3038.0,0.001]
[1764348590409,5.59738752,3038.1,3038.0,0.001]
[1764348591940,5.63853165,3038.1,3038.0,0.001]
[1764348592525,6.86962976,3038.1,3038.0,0.001]
[1764348592732,6.82848563,3038.1,3038.0,0.001]
[1764348593034,23.13002263,3038.1,3038.0,0.001]
[1764348593236,6.82848563,3038.1,3038.0,0.001]
[1764348594116,26.40916363,3038.1,3038.0,0.001]
[1764348594626,26.07828398,3038.1,3038.0,0.001]
[1764348595023,6.82768563,3038.1,3038.0,0.001]
[1764348595338,6.72768563,3038.1,3038.0,0.001]
[1764348596142,5.22288744,3038.1,3038.0,0.001]
[1764348596344,5.26403157,3038.1,3038.0,0.001]
[1764348596516,4.53843746,3038.1,3038.0,0.001]
[1764348599351,4.49729333,3038.1,3038.0,0.001]
[1764348599647,4.53843746,3038.1,3038.0,0.001]
[1764348600370,6.375872,3038.1,3038.0,0.001]
[1764348600527,1.13109811,3038.0,3037.6,0.001]
[1764348600716,10.71707076,3037.7,3037.6,0.001]
[1764348600913,9.09522576,3037.7,3037.6,0.001]
[1764348601125,3.09005415,3037.7,3037.6,0.001]
[1764348601324,4.34985411,3037.7,3037.6,0.001]
[1764348601540,5.19203376,3037.7,3037.6,0.001]
[1764348601748,8.48399807,3037.7,3037.6,0.001]
[1764348602637,8.25311842,3037.7,3037.6,0.001]
[1764348602847,8.58399807,3037.7,3037.6,0.001]
[1764348603046,9.77158406,3037.7,3037.6,0.001]
[1764348604373,29.78237006,3037.7,3037.6,0.001]
[1764348604575,0.405504,3037.4,3037.3,0.001]
[1764348604732,28.36771637,3037.4,3037.3,0.001]
[1764348605068,29.28996924,3037.4,3037.3,0.001]
[1764348605366,32.62758424,3037.4,3037.3,0.001]
[1764348605543,31.06956824,3037.4,3037.3,0.001]
[1764348605744,25.67219124,3037.4,3037.3,0.001]
[1764348606122,25.97324276,3037.4,3037.3,0.001]
[1764348606326,28.82152621,3037.4,3037.3,0.001]
[1764348606759,30.0,3037.2,3037.0,0.001]
[1764348606957,28.76779527,3037.1,3037.0,0.001]
[1764348607336,30.07733827,3037.1,3037.0,0.001]
[1764348607933,29.86833827,3037.1,3037.0,0.001]
[1764348608125,33.54833827,3037.1,3037.0,0.001]
[1764348608332,40.89872993,3037.1,3037.0,0.001]
[1764348608778,0.0047,3037.0,3036.6,0.001]
[1764348609076,35.59997776,3036.7,3036.6,0.001]
[1764348609372,32.63902928,3036.7,3036.6,0.001]
[1764348609670,33.13482928,3036.7,3036.6,0.001]
[1764348610054,0.405504,3036.4,3035.9,1e-08]
[1764348610260,33.49306991,3036.1,3035.9,1e-08]
[1764348610464,0.93558365,3035.7,3035.5,0.001]
[1764348610629,0.405504,3035.6,3035.5,0.001]
[1764348610966,29.87323528,3035.6,3035.5,0.001]
[1764348611387,32.72212928,3035.6,3035.5,0.001]
[1764348611587,32.72212928,3035.6,3033.7,0.4902]
[1764348611588,0.455504,3035.4,3033.7,0.4902]
[1764348611757,0.455504,3035.4,3032.9,3.48975753]
[1764348611758,8.71957428,3035.4,3034.2,0.4902]
[1764348611955,8.71957428,3035.4,3032.9,0.1926]
[1764348611956,1.13109811,3035.3,3033.5,0.1926]
[1764348612163,0.405504,3035.0,3033.5,0.1926]
[1764348612361,0.0992,3033.8,3033.5,0.1926]
[1764348612877,0.0992,3033.8,3033.7,0.4619]
[1764348613063,0.0992,3033.8,3033.7,0.9521]
[1764348616500,0.0992,3033.8,3033.7,0.4619]
[1764348616501,3.39539618,3033.8,3033.7,0.4619]
[1764348616660,0.43007965,3033.6,3033.5,0.1926]
[1764348616866,0.43007965,3033.6,3033.5,0.6449]
[1764348617065,3.29619618,3033.8,3033.5,1.1312]
[1764348617279,0.0992,3033.6,3033.5,0.6449]
[1764348617500,0.0992,3033.6,3033.5,0.1926]
[1764348617880,0.0992,3033.4,3033.3,0.1821]
[1764348618368,3.39583084,3033.4,3032.9,0.1926]
[1764348618576,6.59326168,3033.4,3032.9,0.6789]
[1764348618784,0.0994,3033.0,3032.9,0.4863]
[1764348619311,0.43027965,3033.0,3032.9,0.4863]
[1764348619474,0.33087965,3032.9,3032.6,0.6344]
[1764348619678,0.0994,3032.4,3032.3,0.1821]
[1764348620215,0.0994,3032.4,3031.5,0.1821]
[1764348620216,0.7677,3032.4,3031.5,0.1821]
[1764348620513,9.89448714,3032.0,3031.0,0.4523]
[1764348620716,0.0994,3031.1,3031.0,0.4523]
[1764348620932,0.209,3031.4,3030.9,0.1926]
[1764348621233,0.0994,3031.0,3030.9,0.1926]
[1764348621379,0.76540018,3031.8,3031.7,0.1821]
[1764348621380,0.0994,3031.8,3031.7,0.1821]
[1764348621574,1.3071,3032.8,3031.7,0.1821]
[1764348621575,0.53987965,3032.6,3031.7,1.1207]
[1764348621806,0.0994,3032.0,3031.8,0.4863]
[1764348622008,0.0994,3031.9,3031.8,0.9386]
[1764348622210,0.0994,3031.9,3031.8,0.4523]
[1764348622379,0.0994,3031.9,3031.8,0.9386]
[1764348622845,0.29701334,3032.7,3031.8,0.9386]
[1764348622846,0.0994,3032.1,3031.8,4.2369706]
[1764348622979,0.0994,3032.1,3031.9,0.89420706]
[1764348623181,0.0994,3032.2,3032.0,0.4863]
[1764348623394,0.0994,3032.2,3032.0,1.40648777]
[1764348623631,0.0994,3032.2,3032.1,0.6684]
[1764348623811,0.0994,3032.4,3032.1,1.1207]
[1764348624016,0.53987965,3032.8,3032.1,1.1207]
[1764348624017,0.0994,3032.8,3032.7,0.4863]
[1764348624523,0.0994,3032.8,3032.7,0.9386]
[1764348627537,0.0994,3033.1,3032.7,1.36221875]
[1764348627700,0.0994,3032.8,3032.4,0.4523]
[1764348628031,0.0994,3033.1,3032.2,7.77376509]
[1764348628341,0.0994,3032.8,3032.7,0.4863]
[1764348628503,0.0994,3032.8,3032.7,0.9386]
[1764348629004,3.39668303,3032.8,3032.7,0.4863]
[1764348629206,0.0994,3032.8,3032.7,0.4863]
[1764348629621,0.39793803,3032.9,3032.7,0.9386]
[1764348629814,0.0994,3032.9,3032.7,0.4523]
[1764348630014,0.0994,3032.8,3032.7,0.4523]
[1764348630404,0.0994,3032.8,3032.7,0.9386]
[1764348631011,0.29853803,3033.0,3032.7,0.9386]
[1764348631338,0.29853803,3033.0,3032.6,0.001]
[1764348631339,0.29853803,3032.9,3032.8,0.4523]
[1764348631535,0.873304,3033.8,3032.8,0.4523]
[1764348631536,0.4678,3034.4,3032.8,0.4523]
[1764348631738,0.0994,3033.5,3033.2,0.4863]
[1764348631949,0.2990697,3033.4,3033.2,0.4863]
[1764348632108,0.3984697,3033.4,3033.3,0.6344]
[1764348632308,0.3984697,3033.4,3033.3,0.6684]
[1764348632615,0.3984697,3033.4,3033.3,1.1207]
[1764348632935,0.3984697,3033.4,3033.3,4.41743952]
[1764348633143,0.0994,3033.4,3033.3,5.1888708]
[1764348633329,0.2990697,3033.4,3033.3,5.1888708]
[1764348633510,0.0994,3033.6,3033.3,5.1888708]
[1764348633707,0.0994,3033.6,3033.5,0.4863]
[1764348634042,0.2997093,3033.6,3033.5,0.4863]
[1764348634207,0.1901,3034.7,3033.5,0.4863]
[1764348634208,0.0994,3034.3,3033.5,1.78716103]
[1764348634407,0.29973977,3034.2,3033.9,0.4863]
[1764348634638,0.29973977,3034.1,3034.0,0.4523]
[1764348635118,0.29973977,3034.1,3033.5,1.30916103]
[1764348635313,0.0994,3033.7,3033.5,0.4606]
[1764348635505,0.29973977,3033.6,3033.3,0.6427]
[1764348635711,0.29973977,3033.5,3033.4,0.4606]
[1764348635928,0.29973977,3033.5,3033.4,1.20522493]
[1764348636129,0.29973977,3033.5,3033.4,1.66472493]
[1764348636538,0.30085422,3033.5,3033.4,4.96135577]
[1764348637248,0.30085422,3033.5,3033.4,0.9201]
[1764348637440,0.30085422,3033.5,3033.4,4.21673084]
[1764348638420,0.30085422,3033.5,3033.4,0.9201]
[1764348638622,0.30085422,3033.5,3033.4,4.21673084]
[1764348638821,0.30085422,3033.5,3033.4,4.94232495]
[1764348639021,0.30085422,3033.5,3033.4,5.80544131]
[1764348640131,0.30085422,3033.5,3033.4,2.50881047]
[1764348640342,0.30085422,3033.5,3033.4,5.80544131]
[1764348640538,0.30085422,3033.5,3033.4,1.18509411]
[1764348640738,0.30085422,3033.5,3033.4,4.48172495]
[1764348640939,0.30085422,3033.5,3033.4,4.21673084]
[1764348641635,0.30085422,3033.5,3033.4,11.84913588]
[1764348641837,0.0994,3034.1,3033.5,0.72559411]
[1764348642035,0.3019144,3034.0,3033.6,0.82389558]
[1764348642251,0.0994,3033.8,3033.4,3.50563084]
[1764348642461,0.3019144,3033.7,3033.6,0.4606]
[1764348642659,0.3011144,3033.7,3033.6,0.9201]
[1764348642853,0.3011144,3033.7,3033.6,4.2165135]
[1764348644266,0.3011144,3033.7,3033.6,4.98871645]
[1764348645166,0.3011144,3033.7,3033.6,0.77220295]
[1764348645470,0.3011144,3033.7,3033.4,0.209]
[1764348645471,0.4005144,3033.7,3033.4,0.209]
[1764348645669,0.0994,3033.7,3033.4,3.96619328]
[1764348646167,0.0994,3033.7,3033.4,0.209]
[1764348646355,0.0994,3033.5,3033.4,0.209]
[1764348646951,0.0994,3033.4,3033.1,3.70433719]
[1764348647361,0.0994,3033.4,3033.1,4.16493192]
[1764348647557,0.0994,3033.4,3033.3,0.4595]
[1764348649395,0.0994,3033.4,3033.1,0.4074]
[1764348649693,0.3125,3033.2,3033.0,0.001]
[1764348649895,0.43477965,3033.1,3033.0,0.001]
[1764348650463,0.5546,3033.1,3033.0,0.001]
[1764348651109,3.8515569,3033.1,3033.0,0.001]
[1764348651611,0.0994,3033.1,3033.0,0.001]
[1764348651764,1.10151911,3033.1,3033.0,0.001]
[1764348651970,5.82923466,3033.1,3033.0,0.001]
[1764348652274,5.92923466,3033.1,3033.0,0.001]
[1764348652683,5.82923466,3033.1,3033.0,0.001]
[1764348652897,5.21473066,3033.1,3033.0,0.001]
[1764348653197,6.06588893,3033.1,3033.0,0.001]
[1764348653398,6.27488893,3033.1,3033.0,0.001]
[1764348654108,6.06588893,3033.1,3033.0,0.001]